[Event "Titled Tuesday Blitz March 15 Early 2022"]
[White "Chen, Qi b"]
[Black "Moroni, Luca Jr"]
[WhiteFideId "8614733"]
[BlackFideId "865834"]
[WhiteElo "2432"]
[BlackElo "2573"]
[Result "0-1"]
[Round "05"]
[TimeControl "180+1"]
[Date "2022.03.15"]
[WhiteClock "0:00:08"]
[BlackClock "0:01:45"]

1. e4 {[%clk 0:03:00]}  g6 {[%clk 0:03:00]} 2. d4 {[%clk 0:02:59]}  Bg7 {[%clk 0:03:01]} 3. Nc3 {[%clk 0:03:00]}  d6 {[%clk 0:03:02]} 4. f4 {[%clk 0:03:00]}  c6 {[%clk 0:03:00]} 5. Nf3 {[%clk 0:03:00]}  b5 {[%clk 0:03:00]} 6. Bd3 {[%clk 0:02:59]}  Bb7 {[%clk 0:02:58]} 7. O-O {[%clk 0:02:58]}  Nd7 {[%clk 0:02:59]} 8. a4 {[%clk 0:02:54]}  b4 {[%clk 0:02:59]} 9. Ne2 {[%clk 0:02:54]}  Ngf6 {[%clk 0:02:59]} 10. c3 {[%clk 0:02:53]}  bxc3 {[%clk 0:02:57]} 11. bxc3 {[%clk 0:02:54]}  O-O {[%clk 0:02:55]} 12. Rb1 {[%clk 0:02:38]}  Rb8 {[%clk 0:02:54]} 13. e5 {[%clk 0:02:34]}  Nd5 {[%clk 0:02:47]} 14. c4 {[%clk 0:01:50]}  Nc7 {[%clk 0:02:46]} 15. Kh1 {[%clk 0:01:49]}  Ba8 {[%clk 0:02:42]} 16. Ba3 {[%clk 0:01:46]}  c5 {[%clk 0:02:35]} 17. Rxb8 {[%clk 0:01:29]}  Qxb8 {[%clk 0:02:33]} 18. exd6 {[%clk 0:01:23]}  exd6 {[%clk 0:02:33]} 19. d5 {[%clk 0:01:23]}  Na6 {[%clk 0:02:24]} 20. f5 {[%clk 0:01:11]}  Nb4 {[%clk 0:02:23]} 21. Bb1 {[%clk 0:01:09]}  Qe8 {[%clk 0:02:23]} 22. a5 {[%clk 0:00:42]}  Bb7 {[%clk 0:02:16]} 23. Ng3 {[%clk 0:00:30]}  Ba6 {[%clk 0:02:13]} 24. Qc1 {[%clk 0:00:28]}  Ne5 {[%clk 0:02:07]} 25. Nxe5 {[%clk 0:00:20]}  Qxe5 {[%clk 0:02:06]} 26. Re1 {[%clk 0:00:14]}  Qc3 {[%clk 0:02:05]} 27. Qxc3 {[%clk 0:00:10]}  Bxc3 {[%clk 0:02:06]} 28. Rc1 {[%clk 0:00:10]}  Bd2 {[%clk 0:02:01]} 29. Rd1 {[%clk 0:00:11]}  Bh6 {[%clk 0:01:58]} 30. Ne4 {[%clk 0:00:09]}  Bf4 {[%clk 0:01:51]} 31. fxg6 {[%clk 0:00:09]}  fxg6 {[%clk 0:01:50]} 32. Bxb4 {[%clk 0:00:09]}  cxb4 {[%clk 0:01:50]} 33. c5 {[%clk 0:00:10]}  dxc5 {[%clk 0:01:45]} 34. Nxc5 {[%clk 0:00:10]}  Be2 {[%clk 0:01:45]} 35. Re1 {[%clk 0:00:08]}  Bd2 {[%clk 0:01:45]} 0-1


[Site "https://www.chess.com"]

[Event "Titled Tuesday Blitz March 15 Early 2022"]
[White "Eggleston, Thomas A"]
[Black "Zong, Davis"]
[WhiteFideId "412139"]
[BlackFideId "30903955"]
[WhiteElo "2174"]
[BlackElo "2061"]
[Result "0-1"]
[Round "05"]
[TimeControl "180+1"]
[Date "2022.03.15"]
[WhiteClock "0:01:03"]
[BlackClock "0:00:25"]

1. e4 {[%clk 0:02:58]}  e5 {[%clk 0:02:59]} 2. Nf3 {[%clk 0:02:57]}  Nc6 {[%clk 0:03:00]} 3. d4 {[%clk 0:02:56]}  exd4 {[%clk 0:03:00]} 4. Nxd4 {[%clk 0:02:56]}  Bc5 {[%clk 0:03:00]} 5. Nxc6 {[%clk 0:02:56]}  Qf6 {[%clk 0:03:00]} 6. Qd2 {[%clk 0:02:56]}  dxc6 {[%clk 0:02:59]} 7. Bd3 {[%clk 0:02:57]}  Ne7 {[%clk 0:02:56]} 8. Nc3 {[%clk 0:02:57]}  O-O {[%clk 0:02:55]} 9. Na4 {[%clk 0:02:56]}  Bd6 {[%clk 0:02:41]} 10. f4 {[%clk 0:02:42]}  Qh4+ {[%clk 0:02:01]} 11. g3 {[%clk 0:02:42]}  Qh3 {[%clk 0:01:58]} 12. e5 {[%clk 0:02:41]}  Nd5 {[%clk 0:01:09]} 13. Bf1 {[%clk 0:01:58]}  Qe6 {[%clk 0:01:01]} 14. Kf2 {[%clk 0:01:47]}  Be7 {[%clk 0:00:55]} 15. c4 {[%clk 0:01:42]}  Nb6 {[%clk 0:00:48]} 16. Nxb6 {[%clk 0:01:38]}  axb6 {[%clk 0:00:45]} 17. b4 {[%clk 0:01:36]}  f6 {[%clk 0:00:36]} 18. exf6 {[%clk 0:01:33]}  Bxf6 {[%clk 0:00:36]} 19. Rb1 {[%clk 0:01:31]}  Qe4 {[%clk 0:00:31]} 20. Bg2 {[%clk 0:01:21]}  Qxb1 {[%clk 0:00:29]} 21. b5 {[%clk 0:01:10]}  Rxa2 {[%clk 0:00:28]} 22. Bb2 {[%clk 0:01:03]}  Qxb2 {[%clk 0:00:25]} 0-1


[Site "https://www.chess.com"]

[Event "Titled Tuesday Blitz March 15 Early 2022"]
[White "Esipenko, Andrey"]
[Black "Deac, Bogdan-Daniel"]
[WhiteFideId "24175439"]
[BlackFideId "1226380"]
[WhiteElo "2963"]
[BlackElo "3036"]
[Result "0-1"]
[Round "05"]
[TimeControl "180+1"]
[Date "2022.03.15"]
[WhiteClock "0:00:01"]
[BlackClock "0:00:03"]

1. e4 {[%clk 0:02:58]}  c5 {[%clk 0:02:56]} 2. Nf3 {[%clk 0:02:58]}  d6 {[%clk 0:02:56]} 3. d4 {[%clk 0:02:58]}  cxd4 {[%clk 0:02:57]} 4. Nxd4 {[%clk 0:02:59]}  Nf6 {[%clk 0:02:57]} 5. Nc3 {[%clk 0:03:00]}  a6 {[%clk 0:02:57]} 6. Be3 {[%clk 0:03:00]}  e5 {[%clk 0:02:54]} 7. Nb3 {[%clk 0:03:01]}  Be6 {[%clk 0:02:54]} 8. f3 {[%clk 0:03:01]}  h5 {[%clk 0:02:52]} 9. Qd2 {[%clk 0:03:01]}  Nbd7 {[%clk 0:02:52]} 10. Nd5 {[%clk 0:02:58]}  Bxd5 {[%clk 0:02:51]} 11. exd5 {[%clk 0:02:59]}  g6 {[%clk 0:02:52]} 12. O-O-O {[%clk 0:02:58]}  Nb6 {[%clk 0:02:51]} 13. Kb1 {[%clk 0:02:58]}  Nbxd5 {[%clk 0:02:51]} 14. Bg5 {[%clk 0:02:58]}  Be7 {[%clk 0:02:50]} 15. c4 {[%clk 0:02:37]}  Nf4 {[%clk 0:02:26]} 16. Bxf4 {[%clk 0:02:33]}  exf4 {[%clk 0:02:27]} 17. Qxf4 {[%clk 0:02:33]}  Qc7 {[%clk 0:02:27]} 18. Bd3 {[%clk 0:02:29]}  O-O-O {[%clk 0:02:20]} 19. Rhe1 {[%clk 0:02:28]}  Rhe8 {[%clk 0:02:19]} 20. Rc1 {[%clk 0:02:02]}  Kb8 {[%clk 0:02:13]} 21. Qd4 {[%clk 0:01:49]}  Nd7 {[%clk 0:02:06]} 22. Be4 {[%clk 0:01:49]}  Bf6 {[%clk 0:01:58]} 23. Qd2 {[%clk 0:01:48]}  Nc5 {[%clk 0:01:36]} 24. Bd5 {[%clk 0:01:41]}  Na4 {[%clk 0:01:08]} 25. Rc2 {[%clk 0:01:20]}  Rxe1+ {[%clk 0:00:45]} 26. Qxe1 {[%clk 0:01:19]}  Nb6 {[%clk 0:00:45]} 27. Qe4 {[%clk 0:01:19]}  Nxd5 {[%clk 0:00:39]} 28. Qxd5 {[%clk 0:01:20]}  Re8 {[%clk 0:00:39]} 29. a3 {[%clk 0:01:20]}  Qb6 {[%clk 0:00:31]} 30. Ka2 {[%clk 0:01:19]}  Re3 {[%clk 0:00:27]} 31. c5 {[%clk 0:01:19]}  dxc5 {[%clk 0:00:21]} 32. Nxc5 {[%clk 0:01:19]}  Ka7 {[%clk 0:00:21]} 33. Qxf7 {[%clk 0:00:51]}  Re7 {[%clk 0:00:12]} 34. Qxg6 {[%clk 0:00:25]}  Rc7 {[%clk 0:00:05]} 35. Qf5 {[%clk 0:00:25]}  Bd4 {[%clk 0:00:04]} 36. Na4 {[%clk 0:00:17]}  Qd6 {[%clk 0:00:04]} 37. Rxc7 {[%clk 0:00:13]}  Qxc7 {[%clk 0:00:05]} 38. Qd5 {[%clk 0:00:11]}  Bg1 {[%clk 0:00:05]} 39. h4 {[%clk 0:00:08]}  Qc2 {[%clk 0:00:05]} 40. Nc3 {[%clk 0:00:06]}  Qxg2 {[%clk 0:00:05]} 41. Qxh5 {[%clk 0:00:06]}  Bd4 {[%clk 0:00:05]} 42. Qd5 {[%clk 0:00:07]}  Qd2 {[%clk 0:00:04]} 43. h5 {[%clk 0:00:05]}  Qe3 {[%clk 0:00:03]} 44. Ne4 {[%clk 0:00:02]}  Bb6 {[%clk 0:00:03]} 45. Qe6 {[%clk 0:00:01]}  Qxf3 {[%clk 0:00:03]} 46. h6 {[%clk 0:00:02]}  Qd3 {[%clk 0:00:02]} 47. Nf6 {[%clk 0:00:01]}  Bd4 {[%clk 0:00:03]} 48. Qd6 {[%clk 0:00:01]}  Qd2 {[%clk 0:00:03]} 0-1


[Site "https://www.chess.com"]

[Event "Titled Tuesday Blitz March 15 Early 2022"]
[White "Farmani Anosheh, Armin"]
[Black "Shkapenko, Pavel"]
[WhiteFideId "24613240"]
[BlackFideId "4151933"]
[WhiteElo "2289"]
[BlackElo "2386"]
[Result "1/2-1/2"]
[Round "05"]
[TimeControl "180+1"]
[Date "2022.03.15"]
[WhiteClock "0:00:07"]
[BlackClock "0:00:13"]

1. d4 {[%clk 0:02:58]}  Nf6 {[%clk 0:03:00]} 2. c4 {[%clk 0:02:58]}  e6 {[%clk 0:03:01]} 3. Nf3 {[%clk 0:02:58]}  Bb4+ {[%clk 0:03:01]} 4. Nbd2 {[%clk 0:02:58]}  d5 {[%clk 0:03:00]} 5. a3 {[%clk 0:02:57]}  Be7 {[%clk 0:02:55]} 6. g3 {[%clk 0:02:55]}  b6 {[%clk 0:02:43]} 7. Bg2 {[%clk 0:02:54]}  Bb7 {[%clk 0:02:43]} 8. Ne5 {[%clk 0:02:55]}  O-O {[%clk 0:02:41]} 9. O-O {[%clk 0:02:54]}  c5 {[%clk 0:02:41]} 10. dxc5 {[%clk 0:02:45]}  Bxc5 {[%clk 0:02:39]} 11. Nd3 {[%clk 0:02:29]}  Be7 {[%clk 0:02:37]} 12. Nf4 {[%clk 0:02:08]}  Na6 {[%clk 0:02:30]} 13. b4 {[%clk 0:02:05]}  Rb8 {[%clk 0:02:24]} 14. Bb2 {[%clk 0:01:59]}  dxc4 {[%clk 0:02:23]} 15. Nxc4 {[%clk 0:01:57]}  Bxg2 {[%clk 0:02:22]} 16. Kxg2 {[%clk 0:01:58]}  Qc8 {[%clk 0:02:20]} 17. Qb3 {[%clk 0:01:51]}  Qb7+ {[%clk 0:02:18]} 18. Qf3 {[%clk 0:01:51]}  Ne4 {[%clk 0:02:09]} 19. Rfd1 {[%clk 0:01:38]}  Rfd8 {[%clk 0:02:01]} 20. Nh5 {[%clk 0:01:25]}  Bf8 {[%clk 0:01:57]} 21. h4 {[%clk 0:01:19]}  f5 {[%clk 0:01:34]} 22. Nf4 {[%clk 0:01:10]}  Qf7 {[%clk 0:01:31]} 23. Ne5 {[%clk 0:01:07]}  Qe8 {[%clk 0:01:32]} 24. Qb3 {[%clk 0:01:00]}  Nc7 {[%clk 0:01:28]} 25. f3 {[%clk 0:00:54]}  Nf6 {[%clk 0:01:26]} 26. Rac1 {[%clk 0:00:45]}  Ncd5 {[%clk 0:01:26]} 27. Rd3 {[%clk 0:00:31]}  Nxf4+ {[%clk 0:01:26]} 28. gxf4 {[%clk 0:00:31]}  Rxd3 {[%clk 0:00:57]} 29. Nxd3 {[%clk 0:00:26]}  Nd5 {[%clk 0:00:54]} 30. Bd4 {[%clk 0:00:20]}  Rd8 {[%clk 0:00:50]} 31. Bf2 {[%clk 0:00:19]}  Qg6+ {[%clk 0:00:49]} 32. Kh3 {[%clk 0:00:20]}  Qh6 {[%clk 0:00:48]} 33. Qc4 {[%clk 0:00:15]}  Qf6 {[%clk 0:00:39]} 34. Rg1 {[%clk 0:00:14]}  h6 {[%clk 0:00:32]} 35. Ne5 {[%clk 0:00:13]}  Bd6 {[%clk 0:00:30]} 36. Qd4 {[%clk 0:00:08]}  Nxf4+ {[%clk 0:00:30]} 37. Qxf4 {[%clk 0:00:08]}  Bxe5 {[%clk 0:00:30]} 38. Qc1 {[%clk 0:00:07]}  f4 {[%clk 0:00:28]} 39. Qc2 {[%clk 0:00:05]}  Qf5+ {[%clk 0:00:27]} 40. Qxf5 {[%clk 0:00:06]}  exf5 {[%clk 0:00:28]} 41. Rg6 {[%clk 0:00:06]}  Rd2 {[%clk 0:00:28]} 42. Kg2 {[%clk 0:00:05]}  Rxe2 {[%clk 0:00:27]} 43. Kf1 {[%clk 0:00:06]}  Ra2 {[%clk 0:00:26]} 44. Rc6 {[%clk 0:00:06]}  Rxa3 {[%clk 0:00:26]} 45. Rc8+ {[%clk 0:00:07]}  Kh7 {[%clk 0:00:25]} 46. b5 {[%clk 0:00:08]}  Ra5 {[%clk 0:00:25]} 47. Ra8 {[%clk 0:00:08]}  Kg6 {[%clk 0:00:22]} 48. Kg2 {[%clk 0:00:08]}  Rxb5 {[%clk 0:00:21]} 49. Rxa7 {[%clk 0:00:08]}  Rb2 {[%clk 0:00:22]} 50. Kf1 {[%clk 0:00:07]}  Kh5 {[%clk 0:00:22]} 51. Re7 {[%clk 0:00:06]}  Bf6 {[%clk 0:00:20]} 52. Rd7 {[%clk 0:00:05]}  g6 {[%clk 0:00:19]} 53. Rd6 {[%clk 0:00:03]}  Be7 {[%clk 0:00:17]} 54. Re6 {[%clk 0:00:03]}  Bc5 {[%clk 0:00:16]} 55. Be1 {[%clk 0:00:02]}  Rh2 {[%clk 0:00:16]} 56. Rc6 {[%clk 0:00:01]}  Rh3 {[%clk 0:00:15]} 57. Ke2 {[%clk 0:00:01]}  Rh2+ {[%clk 0:00:15]} 58. Kf1 {[%clk 0:00:02]}  Rb2 {[%clk 0:00:15]} 59. Re6 {[%clk 0:00:02]}  g5 {[%clk 0:00:15]} 60. hxg5 {[%clk 0:00:01]}  hxg5 {[%clk 0:00:16]} 61. Rf6 {[%clk 0:00:02]}  g4 {[%clk 0:00:16]} 62. Rxf5+ {[%clk 0:00:02]}  Kg6 {[%clk 0:00:16]} 63. fxg4 {[%clk 0:00:03]}  Rb1 {[%clk 0:00:15]} 64. Rxf4 {[%clk 0:00:02]}  Kg5 {[%clk 0:00:14]} 65. Re4 {[%clk 0:00:03]}  Bd6 {[%clk 0:00:13]} 66. Kg2 {[%clk 0:00:03]}  Rb2+ {[%clk 0:00:13]} 67. Kf3 {[%clk 0:00:04]}  Rb3+ {[%clk 0:00:14]} 68. Re3 {[%clk 0:00:03]}  Rxe3+ {[%clk 0:00:12]} 69. Kxe3 {[%clk 0:00:04]}  Kxg4 {[%clk 0:00:13]} 70. Kd3 {[%clk 0:00:05]}  Kf5 {[%clk 0:00:12]} 71. Kc4 {[%clk 0:00:05]}  Bc5 {[%clk 0:00:13]} 72. Kb5 {[%clk 0:00:06]}  Ke6 {[%clk 0:00:13]} 73. Ba5 {[%clk 0:00:06]}  bxa5 {[%clk 0:00:13]} 74. Kxa5 {[%clk 0:00:07]} 1/2-1/2


[Site "https://www.chess.com"]

[Event "Titled Tuesday Blitz March 15 Early 2022"]
[White "Fernandez Guillen, Ernesto J."]
[Black "Bettalli, Francesco"]
[WhiteFideId "3512428"]
[BlackFideId "2816453"]
[WhiteElo "2380"]
[BlackElo "2216"]
[Result "1/2-1/2"]
[Round "05"]
[TimeControl "180+1"]
[Date "2022.03.15"]
[WhiteClock "0:00:11"]
[BlackClock "0:00:17"]

1. e4 {[%clk 0:03:00]}  e5 {[%clk 0:03:00]} 2. Nf3 {[%clk 0:03:00]}  Nf6 {[%clk 0:03:00]} 3. d4 {[%clk 0:02:58]}  Nxe4 {[%clk 0:03:00]} 4. Nxe5 {[%clk 0:02:58]}  d6 {[%clk 0:03:00]} 5. Nf3 {[%clk 0:02:58]}  Be7 {[%clk 0:03:01]} 6. Bd3 {[%clk 0:02:58]}  d5 {[%clk 0:03:00]} 7. O-O {[%clk 0:02:59]}  O-O {[%clk 0:03:00]} 8. c4 {[%clk 0:02:59]}  c6 {[%clk 0:03:00]} 9. Nc3 {[%clk 0:02:59]}  f5 {[%clk 0:03:00]} 10. Ne5 {[%clk 0:02:54]}  Be6 {[%clk 0:02:57]} 11. f3 {[%clk 0:02:47]}  Nxc3 {[%clk 0:02:57]} 12. bxc3 {[%clk 0:02:48]}  Nd7 {[%clk 0:02:57]} 13. Re1 {[%clk 0:02:36]}  Nxe5 {[%clk 0:02:55]} 14. Rxe5 {[%clk 0:02:34]}  dxc4 {[%clk 0:02:55]} 15. Rxe6 {[%clk 0:02:24]}  cxd3 {[%clk 0:02:55]} 16. Qxd3 {[%clk 0:02:25]}  Qd7 {[%clk 0:02:51]} 17. Qc4 {[%clk 0:02:18]}  Kh8 {[%clk 0:02:50]} 18. Bf4 {[%clk 0:02:12]}  Rae8 {[%clk 0:02:50]} 19. Rae1 {[%clk 0:02:11]}  Bf6 {[%clk 0:02:48]} 20. Qb3 {[%clk 0:01:32]}  h6 {[%clk 0:02:11]} 21. h3 {[%clk 0:01:31]}  g5 {[%clk 0:02:06]} 22. Bd6 {[%clk 0:01:27]}  Rxe6 {[%clk 0:02:06]} 23. Rxe6 {[%clk 0:01:14]}  Rf7 {[%clk 0:02:05]} 24. Qc4 {[%clk 0:00:57]}  Kg7 {[%clk 0:01:32]} 25. Qe2 {[%clk 0:00:56]}  b6 {[%clk 0:01:24]} 26. g4 {[%clk 0:00:55]}  fxg4 {[%clk 0:01:21]} 27. hxg4 {[%clk 0:00:56]}  c5 {[%clk 0:01:19]} 28. d5 {[%clk 0:00:34]}  Bxc3 {[%clk 0:01:17]} 29. Be5+ {[%clk 0:00:34]}  Bxe5 {[%clk 0:01:14]} 30. Qxe5+ {[%clk 0:00:35]}  Kh7 {[%clk 0:01:12]} 31. Qe4+ {[%clk 0:00:35]}  Kg8 {[%clk 0:01:06]} 32. Qg6+ {[%clk 0:00:34]}  Kf8 {[%clk 0:01:03]} 33. Qxh6+ {[%clk 0:00:34]}  Rg7 {[%clk 0:01:02]} 34. d6 {[%clk 0:00:21]}  Kg8 {[%clk 0:00:54]} 35. Qf6 {[%clk 0:00:14]}  c4 {[%clk 0:00:33]} 36. Re7 {[%clk 0:00:10]}  Rxe7 {[%clk 0:00:25]} 37. dxe7 {[%clk 0:00:10]}  Qd1+ {[%clk 0:00:18]} 38. Kh2 {[%clk 0:00:09]}  Qe2+ {[%clk 0:00:14]} 39. Kh3 {[%clk 0:00:09]}  Qf1+ {[%clk 0:00:14]} 40. Kg3 {[%clk 0:00:10]}  Qg1+ {[%clk 0:00:14]} 41. Kh3 {[%clk 0:00:10]}  Qh1+ {[%clk 0:00:15]} 42. Kg3 {[%clk 0:00:11]}  Qg1+ {[%clk 0:00:16]} 43. Kh3 {[%clk 0:00:11]}  Qh1+ {[%clk 0:00:16]} 44. Kg3 {[%clk 0:00:11]}  Qg1+ {[%clk 0:00:17]} 1/2-1/2


[Site "https://www.chess.com"]

[Event "Titled Tuesday Blitz March 15 Early 2022"]
[White "Fier, Alexandr"]
[Black "Coto Mederos, Michel"]
[WhiteFideId "2107139"]
[BlackFideId "3508528"]
[WhiteElo "2571"]
[BlackElo "2427"]
[Result "1-0"]
[Round "05"]
[TimeControl "180+1"]
[Date "2022.03.15"]
[WhiteClock "0:01:00"]
[BlackClock "0:00:05"]

1. d4 {[%clk 0:02:59]}  d5 {[%clk 0:02:55]} 2. c4 {[%clk 0:02:59]}  e6 {[%clk 0:02:55]} 3. Nc3 {[%clk 0:02:59]}  Nf6 {[%clk 0:02:55]} 4. Nf3 {[%clk 0:02:59]}  Be7 {[%clk 0:02:55]} 5. Bf4 {[%clk 0:02:58]}  O-O {[%clk 0:02:51]} 6. e3 {[%clk 0:02:59]}  b6 {[%clk 0:02:50]} 7. cxd5 {[%clk 0:02:58]}  exd5 {[%clk 0:02:49]} 8. Bd3 {[%clk 0:02:57]}  Bb7 {[%clk 0:02:46]} 9. O-O {[%clk 0:02:57]}  c5 {[%clk 0:02:40]} 10. Ne5 {[%clk 0:02:56]}  Nc6 {[%clk 0:02:30]} 11. Nxc6 {[%clk 0:02:56]}  Bxc6 {[%clk 0:02:31]} 12. Rc1 {[%clk 0:02:57]}  c4 {[%clk 0:02:19]} 13. Bb1 {[%clk 0:02:54]}  b5 {[%clk 0:02:19]} 14. Ne2 {[%clk 0:02:48]}  b4 {[%clk 0:02:05]} 15. Ng3 {[%clk 0:02:48]}  Bd6 {[%clk 0:01:55]} 16. Bg5 {[%clk 0:02:43]}  h6 {[%clk 0:01:48]} 17. Bh4 {[%clk 0:02:12]}  g5 {[%clk 0:01:26]} 18. Nf5 {[%clk 0:02:09]}  gxh4 {[%clk 0:01:21]} 19. Nxh6+ {[%clk 0:02:09]}  Kg7 {[%clk 0:01:01]} 20. Nf5+ {[%clk 0:02:09]}  Kh8 {[%clk 0:01:01]} 21. Qf3 {[%clk 0:02:07]}  Rg8 {[%clk 0:00:56]} 22. Qh3 {[%clk 0:01:57]}  Ng4 {[%clk 0:00:39]} 23. Nxh4 {[%clk 0:01:52]}  Kg7 {[%clk 0:00:20]} 24. Qxg4+ {[%clk 0:01:52]}  Kf8 {[%clk 0:00:18]} 25. Qh5 {[%clk 0:01:51]}  Qf6 {[%clk 0:00:15]} 26. g3 {[%clk 0:01:33]}  Rh8 {[%clk 0:00:10]} 27. Qf5 {[%clk 0:01:33]}  Be7 {[%clk 0:00:07]} 28. Qxf6 {[%clk 0:01:33]}  Bxf6 {[%clk 0:00:08]} 29. Nf3 {[%clk 0:01:33]}  Bd7 {[%clk 0:00:07]} 30. e4 {[%clk 0:01:31]}  Bg4 {[%clk 0:00:04]} 31. Ne5 {[%clk 0:01:29]}  Bxe5 {[%clk 0:00:04]} 32. dxe5 {[%clk 0:01:30]}  d4 {[%clk 0:00:05]} 33. Rxc4 {[%clk 0:01:27]}  Be2 {[%clk 0:00:04]} 34. Rxd4 {[%clk 0:01:20]}  Bxf1 {[%clk 0:00:04]} 35. Kxf1 {[%clk 0:01:21]}  Rxh2 {[%clk 0:00:04]} 36. Kg1 {[%clk 0:01:21]}  Rh6 {[%clk 0:00:03]} 37. Rxb4 {[%clk 0:01:21]}  Rc8 {[%clk 0:00:04]} 38. Bd3 {[%clk 0:01:20]}  Rc1+ {[%clk 0:00:04]} 39. Kg2 {[%clk 0:01:20]}  Rd1 {[%clk 0:00:04]} 40. Bc4 {[%clk 0:01:17]}  Rb6 {[%clk 0:00:03]} 41. Rxb6 {[%clk 0:01:08]}  axb6 {[%clk 0:00:04]} 42. b3 {[%clk 0:01:07]}  Rd2 {[%clk 0:00:04]} 43. a4 {[%clk 0:01:07]}  Ke7 {[%clk 0:00:02]} 44. Kf3 {[%clk 0:01:07]}  Rb2 {[%clk 0:00:02]} 45. Ke3 {[%clk 0:01:07]}  Rc2 {[%clk 0:00:03]} 46. f4 {[%clk 0:00:59]}  Rg2 {[%clk 0:00:04]} 47. Kf3 {[%clk 0:00:59]}  Rc2 {[%clk 0:00:04]} 48. Kg4 {[%clk 0:00:57]}  Rc3 {[%clk 0:00:03]} 49. f5 {[%clk 0:00:57]}  Re3 {[%clk 0:00:02]} 50. Kf4 {[%clk 0:00:58]}  Re1 {[%clk 0:00:02]} 51. g4 {[%clk 0:00:58]}  Kf8 {[%clk 0:00:03]} 52. e6 {[%clk 0:00:57]}  fxe6 {[%clk 0:00:02]} 53. Bxe6 {[%clk 0:00:58]}  Rf1+ {[%clk 0:00:03]} 54. Ke5 {[%clk 0:00:58]}  Re1 {[%clk 0:00:03]} 55. g5 {[%clk 0:00:59]}  Rg1 {[%clk 0:00:04]} 56. Kf6 {[%clk 0:00:59]}  Ke8 {[%clk 0:00:02]} 57. g6 {[%clk 0:00:59]}  Kd8 {[%clk 0:00:03]} 58. g7 {[%clk 0:00:59]}  Kc7 {[%clk 0:00:04]} 59. g8=Q {[%clk 0:00:59]}  Rxg8 {[%clk 0:00:05]} 60. Bxg8 {[%clk 0:01:00]} 1-0


[Site "https://www.chess.com"]

[Event "Titled Tuesday Blitz March 15 Early 2022"]
[White "Fiorito, Fabian"]
[Black "Quirke, Jeffrey"]
[WhiteFideId "100200"]
[BlackFideId "2013029"]
[WhiteElo "2395"]
[BlackElo "2250"]
[Result "1-0"]
[Round "05"]
[TimeControl "180+1"]
[Date "2022.03.15"]
[WhiteClock "0:02:04"]
[BlackClock "0:00:16"]

1. d4 {[%clk 0:03:00]}  d5 {[%clk 0:02:59]} 2. Nc3 {[%clk 0:03:00]}  Nf6 {[%clk 0:02:57]} 3. Bf4 {[%clk 0:03:00]}  e6 {[%clk 0:02:55]} 4. Nb5 {[%clk 0:02:59]}  Na6 {[%clk 0:02:51]} 5. e3 {[%clk 0:02:59]}  c6 {[%clk 0:02:45]} 6. Nc3 {[%clk 0:02:59]}  Nc7 {[%clk 0:02:38]} 7. Nf3 {[%clk 0:02:58]}  Bd6 {[%clk 0:02:37]} 8. Ne5 {[%clk 0:02:58]}  O-O {[%clk 0:02:36]} 9. g4 {[%clk 0:02:56]}  Nce8 {[%clk 0:02:27]} 10. Bd3 {[%clk 0:02:53]}  Nd7 {[%clk 0:02:16]} 11. g5 {[%clk 0:02:48]}  Bxe5 {[%clk 0:02:05]} 12. dxe5 {[%clk 0:02:49]}  Qc7 {[%clk 0:01:51]} 13. Qh5 {[%clk 0:02:48]}  g6 {[%clk 0:01:51]} 14. Qh6 {[%clk 0:02:42]}  Ng7 {[%clk 0:01:37]} 15. h4 {[%clk 0:02:28]}  Nxe5 {[%clk 0:01:24]} 16. Bxe5 {[%clk 0:02:23]}  Qxe5 {[%clk 0:01:23]} 17. h5 {[%clk 0:02:23]}  Nf5 {[%clk 0:00:25]} 18. Bxf5 {[%clk 0:02:23]}  gxf5 {[%clk 0:00:26]} 19. g6 {[%clk 0:02:15]}  fxg6 {[%clk 0:00:25]} 20. hxg6 {[%clk 0:02:15]}  Qg7 {[%clk 0:00:25]} 21. gxh7+ {[%clk 0:02:15]}  Kh8 {[%clk 0:00:25]} 22. Qh2 {[%clk 0:02:03]}  Bd7 {[%clk 0:00:16]} 23. Rg1 {[%clk 0:02:03]}  Qxh7 {[%clk 0:00:16]} 24. Qe5+ {[%clk 0:02:04]} 1-0


[Site "https://www.chess.com"]

[Event "Titled Tuesday Blitz March 15 Early 2022"]
[White "Flis, Pawel"]
[Black "Manon-og, Ramon Jr."]
[WhiteFideId "1112864"]
[BlackFideId "5200776"]
[WhiteElo "1735"]
[BlackElo "2271"]
[Result "1-0"]
[Round "05"]
[TimeControl "180+1"]
[Date "2022.03.15"]
[WhiteClock "0:01:40"]
[BlackClock "0:00:03"]

1. e4 {[%clk 0:03:00]}  e5 {[%clk 0:02:28]} 2. d4 {[%clk 0:02:53]}  Bb4+ {[%clk 0:02:24]} 3. c3 {[%clk 0:02:50]}  Ba5 {[%clk 0:02:10]} 4. dxe5 {[%clk 0:02:49]}  Nc6 {[%clk 0:01:53]} 5. Bc4 {[%clk 0:02:47]}  Nge7 {[%clk 0:01:39]} 6. f4 {[%clk 0:02:45]}  Ng6 {[%clk 0:01:33]} 7. Nf3 {[%clk 0:02:41]}  O-O {[%clk 0:01:26]} 8. O-O {[%clk 0:02:39]}  a6 {[%clk 0:00:58]} 9. a4 {[%clk 0:02:32]}  b6 {[%clk 0:00:55]} 10. Be3 {[%clk 0:02:26]}  Qe8 {[%clk 0:00:49]} 11. b4 {[%clk 0:02:22]}  Bb7 {[%clk 0:00:50]} 12. bxa5 {[%clk 0:02:21]}  bxa5 {[%clk 0:00:49]} 13. Bd5 {[%clk 0:02:20]}  Nce7 {[%clk 0:00:45]} 14. Bxb7 {[%clk 0:02:19]}  Rb8 {[%clk 0:00:42]} 15. Bxa6 {[%clk 0:02:16]}  Rb7 {[%clk 0:00:43]} 16. Bxb7 {[%clk 0:02:14]}  Nc6 {[%clk 0:00:28]} 17. Bxc6 {[%clk 0:02:13]}  dxc6 {[%clk 0:00:26]} 18. Nbd2 {[%clk 0:02:12]}  Ne7 {[%clk 0:00:20]} 19. Nc4 {[%clk 0:02:09]}  Kh8 {[%clk 0:00:17]} 20. Nxa5 {[%clk 0:02:07]}  Kg8 {[%clk 0:00:16]} 21. Rb1 {[%clk 0:02:03]}  Kh8 {[%clk 0:00:14]} 22. f5 {[%clk 0:01:53]}  Kg8 {[%clk 0:00:15]} 23. Bc5 {[%clk 0:01:49]}  Nc8 {[%clk 0:00:16]} 24. Bxf8 {[%clk 0:01:48]}  Qxf8 {[%clk 0:00:14]} 25. Nxc6 {[%clk 0:01:45]}  Nb6 {[%clk 0:00:05]} 26. Rxb6 {[%clk 0:01:41]}  cxb6 {[%clk 0:00:03]} 27. Qd8 {[%clk 0:01:40]} 1-0


[Site "https://www.chess.com"]